bitfinex/quotes_ETHUSD_20240702
["timestamp","ask_amount","ask_price","bid_price","bid_amount"]
[1719896213082,2.8891,3461.3,3460.9,0.87395992]
[1719896213262,2.8891,3461.3,3460.9,0.05695992]
[1719896214378,2.88919,3461.2,3460.9,0.05695992]
[1719896215384,2.88926,3461.1,3460.9,0.05695992]
[1719896216174,2.88933,3461.0,3460.9,0.05695992]
[1719896216779,2.88933,3461.0,3460.7,0.817]
[1719896216979,2.88933,3461.0,3460.9,0.05330711]
[1719896217464,2.88933,3461.0,3460.7,0.817]
[1719896217848,2.88933,3461.0,3460.8,0.05330711]
[1719896218276,3.467189,3461.0,3460.8,0.05330711]
[1719896219481,2.88933,3461.0,3460.8,0.05330711]
[1719896224423,2.88917,3461.2,3460.8,0.05330711]
[1719896224904,2.88925,3461.1,3460.8,0.05330711]
[1719896233732,2.88918,3461.2,3460.8,0.05330711]
[1719896241031,1.46634532,3461.1,3460.8,0.05330711]
[1719896241242,2.88918,3461.2,3460.8,0.05330711]
[1719896241544,1.46635862,3461.1,3460.8,0.05330711]
[1719896241750,2.88918,3461.2,3460.8,0.05330711]
[1719896242056,1.46635841,3461.1,3460.8,0.05330711]
[1719896242221,2.88918,3461.2,3460.8,0.05330711]
[1719896242422,1.4663581,3461.1,3460.8,0.05330711]
[1719896242724,2.88918,3461.2,3460.8,0.05330711]
[1719896242951,1.46635795,3461.1,3460.8,0.05330711]
[1719896243248,2.88918,3461.2,3460.8,0.05330711]
[1719896243448,2.04418165,3461.1,3460.8,0.05330711]
[1719896243651,2.88918,3461.2,3460.6,3.316]
[1719896243821,1.46636085,3461.1,3460.9,0.05335097]
[1719896244021,2.88918,3461.2,3460.6,3.316]
[1719896244244,1.46636095,3461.1,3461.0,0.05335097]
[1719896244444,1.46636095,3461.1,3460.6,3.316]
[1719896244632,2.88925,3461.1,3461.0,0.05335097]
[1719896244840,4.35567502,3461.1,3460.6,3.316]
[1719896245039,2.88925,3461.1,3461.0,0.05335097]
[1719896245247,4.93347732,3461.1,3460.6,3.316]
[1719896245466,2.88925,3461.1,3461.0,0.05335097]
[1719896245646,4.35562861,3461.1,3460.6,3.316]
[1719896245842,2.88925,3461.1,3461.0,0.05335097]
[1719896246029,4.35556787,3461.1,3460.6,3.316]
[1719896246250,2.88925,3461.1,3461.0,0.05335097]
[1719896246466,4.93342024,3461.1,3460.6,3.316]
[1719896246679,2.88925,3461.1,3461.0,0.05335097]
[1719896246875,4.35559258,3461.1,3460.6,3.316]
[1719896247074,2.88925,3461.1,3460.6,3.316]
[1719896247459,2.88925,3461.1,3460.7,0.05335097]
[1719896249343,1.46629784,3461.0,3460.7,0.05335097]
[1719896249548,2.88925,3461.1,3460.7,0.05335097]
[1719896249769,1.46630008,3461.0,3460.7,0.05335097]
[1719896249964,2.88925,3461.1,3460.7,0.05335097]
[1719896250342,1.46630325,3461.0,3460.7,0.05335097]
[1719896250549,2.88925,3461.1,3460.7,0.05335097]
[1719896250798,1.46630182,3461.0,3460.7,0.05335097]
[1719896251097,2.88925,3461.1,3460.7,0.05335097]
[1719896251401,1.46630039,3461.0,3460.7,0.05335097]
[1719896251694,2.88925,3461.1,3460.7,0.05335097]
[1719896251877,1.46631924,3461.0,3460.7,0.05335097]
[1719896252047,2.88925,3461.1,3460.7,0.05335097]
[1719896252242,1.4663227,3461.0,3460.7,0.05335097]
[1719896252461,2.88925,3461.1,3460.7,0.05335097]
[1719896252678,1.46633572,3461.0,3460.7,0.05335097]
[1719896252877,2.88925,3461.1,3460.7,0.05335097]
[1719896253077,1.46632156,3461.0,3460.7,0.05335097]
[1719896253259,2.88925,3461.1,3460.7,0.05335097]
[1719896253459,1.46632732,3461.0,3460.7,0.05335097]
[1719896253649,2.88925,3461.1,3460.7,0.05335097]
[1719896253856,1.46631927,3461.0,3460.7,0.05335097]
[1719896254053,2.88925,3461.1,3460.7,0.05335097]
[1719896254382,1.4663259,3461.0,3460.7,0.05335097]
[1719896254581,2.88925,3461.1,3460.7,0.05335097]
[1719896255083,1.46632576,3461.0,3460.7,0.05335097]
[1719896255279,2.88925,3461.1,3460.7,0.05335097]
[1719896255473,1.46631811,3461.0,3460.7,0.05335097]
[1719896257677,1.46631811,3461.0,3459.1,13.2514862]
[1719896257678,1.46631811,3461.0,3458.9,2.01051215]
[1719896257679,2.891,3459.0,3458.9,2.01051215]
[1719896257878,8.45280749,3459.0,3458.9,0.00447381]
[1719896258089,8.47951913,3459.0,3458.9,0.00447381]
[1719896258276,8.47951913,3459.0,3458.7,1.519281]
[1719896258277,2.0,3458.8,3458.7,1.51033339]
[1719896258466,4.19899529,3458.8,3458.7,1.51033339]
[1719896258666,2.19899529,3458.8,3458.7,3.45130929]
[1719896258866,1.69815006,3458.8,3458.7,1.86611518]
[1719896259089,1.0,3459.2,3458.7,1.86611518]
[1719896259258,2.10302983,3459.1,3458.7,1.86611518]
[1719896259593,0.817,3459.1,3458.7,1.86611518]
[1719896259795,0.817,3459.1,3458.8,0.47575352]
[1719896259968,1.0,3459.0,3458.8,0.47575352]
[1719896260162,1.0,3459.0,3458.7,1.86611518]
[1719896260692,1.0,3459.2,3458.8,0.0578184]
[1719896260890,5.99465765,3460.2,3458.8,2.9489684]
[1719896260891,2.0,3459.8,3458.8,2.9489684]
[1719896261193,3.78055454,3460.9,3458.8,2.9489684]
[1719896261194,1.0,3459.6,3459.3,0.817]
[1719896261392,1.0,3459.6,3459.4,0.370784]
[1719896261692,1.0,3459.6,3459.4,0.4120988]
[1719896261895,0.08850325,3459.5,3459.4,0.4120988]
[1719896263089,0.08850325,3459.5,3459.4,3.3027688]
[1719896264566,0.08850325,3459.5,3459.4,0.4120988]
[1719896264761,0.08850325,3459.5,3459.4,3.3027688]
[1719896265094,0.08850325,3459.5,3459.4,0.0413148]
[1719896265461,0.08850325,3459.5,3459.1,2.89092]
[1719896265690,0.08850325,3459.5,3459.4,0.0413148]
[1719896266197,0.08850325,3459.5,3459.3,2.89075]
[1719896266392,0.08850325,3459.5,3459.4,0.04178338]
[1719896267279,0.08850325,3459.5,3459.4,2.93245338]
[1719896267482,1.08850325,3459.5,3459.4,0.04178338]
[1719896267683,1.08850325,3459.5,3459.4,2.89067]
[1719896268062,0.08850325,3459.5,3459.4,2.93245338]
[1719896269069,0.08850325,3459.5,3459.4,7.30413872]
[1719896269471,0.08850325,3459.5,3459.4,10.19480872]
[1719896270070,0.08850325,3459.5,3459.4,13.23110872]
[1719896270502,0.08850325,3459.5,3459.4,16.12177872]
[1719896270671,1.0,3460.4,3460.3,5.77984]
[1719896270870,1.0,3460.4,3460.3,5.82198744]
[1719896275495,1.0,3460.4,3460.3,6.63898744]
[1719896276615,1.0,3460.4,3460.3,5.82198744]
[1719896279683,1.0,3460.4,3460.3,6.63898744]
[1719896281200,1.0,3460.4,3460.3,7.59189418]
[1719896284101,1.0,3460.4,3460.3,10.48181418]
[1719896284314,1.0,3460.7,3460.6,5.77934]
[1719896284814,1.0,3460.7,3460.6,5.81814456]
[1719896285517,1.0,3460.7,3460.6,6.63514456]
[1719896290913,1.0,3461.1,3460.8,5.779]
[1719896290914,1.0,3460.9,3460.8,5.779]
[1719896291114,1.0,3460.9,3460.8,5.81643695]
[1719896292625,0.972,3460.9,3460.8,5.81643695]
[1719896300847,0.972,3460.9,3460.8,0.03743695]
[1719896301051,0.972,3460.9,3460.6,2.88964]
[1719896301248,0.972,3460.9,3458.8,5.89111]
[1719896301249,2.89078,3459.3,3457.5,1.157299]
[1719896301550,0.972,3457.8,3457.4,0.05784333]
[1719896301853,0.972,3458.2,3457.0,2.4643]
[1719896302151,0.817,3457.8,3457.0,2.4643]
[1719896302360,0.817,3457.8,3457.3,2.8924]
[1719896302862,0.817,3458.1,3457.3,2.8924]
[1719896303156,0.817,3458.1,3457.4,0.37094]
[1719896303316,0.817,3458.1,3457.6,2.89217]
[1719896303715,0.972,3458.2,3457.6,2.89217]
[1719896303947,0.972,3458.2,3457.4,0.37094]
[1719896304318,0.972,3458.2,3457.4,3.26324]
[1719896304549,0.972,3458.2,3457.5,0.615564]
[1719896305047,0.972,3458.2,3457.6,0.55]
[1719896308744,0.972,3458.2,3457.7,0.0324657]
[1719896313120,0.615564,3458.6,3457.8,0.05783159]
[1719896313334,0.615564,3458.6,3458.0,1.97]
[1719896313539,0.615564,3458.6,3458.1,0.83852327]
[1719896313833,0.972,3459.2,3458.1,4.31360584]
[1719896314632,0.972,3459.2,3458.1,4.25578773]
[1719896315231,1.972,3459.2,3458.1,1.36404773]
[1719896318423,0.972,3458.9,3458.1,1.36404773]
[1719896318648,0.972,3458.9,3458.2,0.65932677]
[1719896318955,1.0,3458.8,3458.2,0.65932677]
[1719896319137,0.972,3458.9,3458.3,0.03404734]
[1719896319540,0.972,3458.9,3458.0,0.55]
[1719896319744,0.972,3458.9,3458.4,0.03291242]
[1719896319945,0.972,3458.9,3458.0,0.55]
[1719896320155,1.0,3458.8,3458.5,0.03177751]
[1719896320359,0.972,3458.5,3457.7,0.28275543]
[1719896320521,0.972,3458.5,3457.8,0.55]
[1719896323368,0.972,3458.5,3457.7,3.44373654]
[1719896323369,3.4257,3458.5,3457.7,0.55165654]
[1719896323673,3.4257,3458.5,3456.9,5.21031]
[1719896323674,0.972,3458.0,3456.9,5.21031]
[1719896323958,0.972,3458.0,3457.8,0.03062633]
[1719896324166,0.972,3458.0,3456.9,5.49817526]
[1719896324330,0.972,3458.0,3457.2,2.8925]
[1719896324925,0.972,3458.0,3457.3,0.08441113]
[1719896325159,0.972,3458.3,3457.4,3.50017572]
[1719896325488,0.972,3458.3,3457.5,0.02565785]
[1719896325933,0.972,3458.1,3457.5,0.02565785]
[1719896326131,0.972,3458.1,3457.6,0.34679979]
[1719896326745,1.0,3458.5,3457.7,0.02565785]
[1719896326746,0.972,3458.3,3457.7,0.02565785]
[1719896326931,0.972,3458.3,3457.7,0.08349006]
[1719896327579,0.972,3458.1,3457.7,0.02565785]
[1719896328489,0.972,3458.1,3457.6,0.34679979]
[1719896331344,5.27123,3457.9,3456.9,0.28786526]
[1719896331547,5.27123,3457.9,3455.1,4.347]
[1719896331548,0.972,3456.5,3454.8,2.4878]
[1719896331745,2.3793,3457.1,3454.8,2.4878]
[1719896331746,0.972,3456.3,3454.8,2.4878]
[1719896331951,2.89301,3456.6,3455.1,0.05786289]
[1719896331952,0.972,3456.6,3455.1,0.05786289]
[1719896332198,0.972,3456.6,3455.0,0.68010229]
[1719896332199,0.972,3456.6,3455.2,2.95200803]
[1719896332346,0.972,3456.6,3455.2,2.89415]
[1719896332544,3.86504,3456.6,3455.3,0.38632998]
[1719896332744,0.972,3456.6,3455.2,2.89418]
[1719896332940,0.972,3456.6,3455.1,2.89423]
[1719896333184,3.07632619,3456.4,3455.1,2.89423]
[1719896333400,2.89318,3456.4,3455.1,2.89423]
[1719896333683,2.89318,3456.4,3455.2,0.38633798]
[1719896333987,4.07609619,3456.7,3455.2,3.3063483]
[1719896334189,2.98158521,3456.6,3455.2,2.92001032]
[1719896334345,2.98158521,3456.6,3455.3,2.89407]
[1719896334777,1.0,3456.5,3455.4,0.57661375]
[1719896334989,1.0,3456.5,3455.5,0.34706838]
[1719896335285,1.0,3456.5,3455.6,0.57657658]
[1719896336713,2.98158521,3456.6,3455.6,0.57657658]
[1719896338344,0.18314619,3456.3,3455.6,0.02657658]
[1719896338545,0.27157016,3456.3,3455.6,0.02657658]
[1719896338846,0.27157016,3456.3,3455.0,3.86347978]
[1719896339059,0.27157016,3456.3,3455.7,0.0256774]
[1719896339258,0.27157016,3456.3,3455.1,0.92456798]
[1719896339503,3.16486016,3456.3,3455.8,0.0256774]
[1719896339649,3.16486016,3456.3,3455.1,3.81882798]
[1719896339990,3.16486016,3456.3,3455.2,0.55]
[1719896339991,0.27157016,3456.3,3455.2,0.55]
[1719896340292,0.27157016,3456.3,3455.3,0.59166126]
[1719896340293,0.08842397,3456.3,3455.3,0.59166126]
[1719896340477,0.08842397,3456.3,3455.3,0.53379778]
[1719896340646,0.08842397,3456.3,3455.4,0.08354076]
[1719896340850,0.08842397,3456.3,3455.9,2.89354]
[1719896341046,0.08842397,3456.3,3456.0,0.05785027]
[1719896341273,0.08842397,3456.3,3456.1,0.29513903]
[1719896341549,0.08842397,3456.3,3456.2,0.05785036]
[1719896341850,0.18314619,3457.1,3456.2,0.08354466]
[1719896342086,0.27157016,3457.1,3456.3,0.05785016]
[1719896342255,0.27157016,3457.1,3456.3,0.44006751]
[1719896342448,0.27157016,3457.1,3456.4,0.0256943]
[1719896342662,0.27157016,3457.1,3456.5,0.05785023]
[1719896342977,0.08842397,3457.1,3456.5,0.05785023]
[1719896343163,0.08842397,3457.1,3456.6,0.0256943]
[1719896343364,0.08842397,3457.1,3456.7,0.05784441]
[1719896343977,0.08842397,3457.1,3456.8,0.08330923]
[1719896345095,0.08842397,3457.1,3456.8,0.02546457]
[1719896345391,0.08842397,3457.1,3456.6,3.443]
[1719896345595,0.08842397,3457.1,3456.9,0.02546457]
[1719896345805,0.08842397,3457.1,3456.9,0.05784202]
[1719896345988,0.08842397,3457.1,3457.0,0.02527881]
[1719896348911,0.08842397,3457.1,3457.0,0.05784009]
[1719896349210,1.0,3457.6,3457.0,0.37818591]
[1719896349412,1.0,3457.6,3457.0,0.32034582]
[1719896350171,1.0,3457.6,3456.8,2.89283]
[1719896351365,1.18314619,3457.6,3456.6,0.84509247]
[1719896351485,0.18314619,3457.4,3456.6,0.29509247]
[1719896357407,0.18314619,3457.4,3456.6,3.18809247]
[1719896357629,0.18314619,3457.4,3456.7,0.55935925]
[1719896362897,0.18314619,3457.4,3456.7,3.45228925]
[1719896364389,0.18314619,3457.4,3456.8,2.89284]
[1719896365098,0.18314619,3457.7,3456.9,0.05784436]
[1719896365711,0.18314619,3457.7,3457.0,2.89266]
[1719896365912,0.18314619,3457.7,3457.1,0.35289077]
[1719896366312,2.54014619,3458.1,3457.3,2.89241]
[1719896366626,2.54014619,3458.1,3457.4,2.95015595]
[1719896366627,2.357,3458.1,3457.4,2.95015595]
[1719896368105,0.18314619,3458.0,3457.4,2.95015595]
[1719896368941,2.357,3458.1,3457.4,2.95015595]
[1719896369236,0.18314619,3458.0,3457.4,2.95015595]
[1719896369535,2.357,3458.1,3457.4,2.95015595]
[1719896369839,0.18314619,3458.0,3457.4,2.95015595]
[1719896370253,2.357,3458.1,3457.4,2.95015595]
[1719896370562,2.357,3458.1,3457.5,2.89221]
[1719896371510,2.357,3458.1,3457.4,0.61376164]
[1719896371721,0.18314619,3457.8,3457.1,2.89256]
[1719896371947,0.18314619,3457.8,3457.2,2.89251]
[1719896372649,0.18314619,3457.8,3457.3,2.89242]
[1719896373215,3.54014619,3458.1,3457.3,2.89242]
[1719896373547,1.0,3457.9,3457.3,2.89242]
[1719896374728,0.18314619,3457.8,3457.3,2.89242]
[1719896374927,0.18314619,3457.8,3457.1,2.89256]
[1719896375436,0.18314619,3457.8,3456.8,2.89284]
[1719896375614,0.18314619,3457.5,3456.8,2.89284]
[1719896376462,1.18314619,3457.7,3456.7,3.17761021]
[1719896376642,1.18314619,3457.7,3457.0,2.89267]
[1719896376846,1.36038019,3457.7,3456.8,2.89284]
[1719896377039,0.18314619,3457.5,3456.8,2.89278]
[1719896377346,2.2651,3457.4,3456.8,2.89278]
[1719896377913,2.2651,3457.4,3456.7,3.17760021]
[1719896377914,2.2651,3457.4,3456.7,2.89291]
[1719896378120,1.42797081,3457.3,3456.5,3.17933069]
[1719896378320,0.42797081,3457.3,3456.5,2.89308]
[1719896378621,0.42797081,3457.3,3456.2,2.89334]
[1719896378622,0.42797081,3457.3,3456.3,2.89322]
[1719896378839,0.18314619,3457.0,3456.2,2.8933]
[1719896379037,0.18314619,3457.0,3456.3,2.89326]
[1719896379218,0.18314619,3457.0,3456.1,2.89336]
[1719896379413,0.18314619,3457.0,3456.2,2.89334]
[1719896379620,0.18314619,3457.0,3456.3,2.8932]
[1719896381550,0.18314619,3457.0,3456.3,2.89325]
[1719896382262,0.18314619,3457.0,3456.3,3.40798645]
[1719896384020,1.0,3456.9,3456.3,0.51473645]
[1719896384221,1.0,3456.9,3456.1,2.89343]
[1719896384641,1.0,3456.9,3456.2,2.89332]
[1719896387430,1.0,3456.9,3456.0,5.14757449]
[1719896387941,1.0,3456.9,3456.1,2.89339]
[1719896389121,1.0,3456.9,3456.1,5.78675]
[1719896389955,2.4271,3456.8,3456.1,5.78675]
[1719896390152,2.4271,3456.8,3456.2,3.69742645]
[1719896391156,2.4271,3456.8,3456.2,0.80408645]
[1719896391361,2.4271,3456.8,3456.2,3.69740645]
[1719896400663,2.4271,3456.8,3456.3,2.89325]
[1719896401374,2.2553,3457.2,3456.7,2.89288]
[1719896401675,2.2553,3457.2,3456.8,0.05784688]
[1719896402766,2.2553,3457.2,3456.6,2.893]
[1719896403674,2.2553,3457.2,3456.7,2.89291]
[1719896403860,2.2553,3457.2,3456.7,2.95075761]
[1719896404050,2.2553,3457.2,3456.8,0.05784762]
[1719896404581,3.65174619,3457.5,3456.8,2.95067762]
[1719896405189,2.65174619,3457.5,3456.8,2.89283]
[1719896405384,2.65174619,3457.5,3456.6,3.471566]
[1719896406240,5.54401619,3457.5,3456.6,3.471566]
[1719896406876,1.0,3457.3,3456.6,3.76585933]
[1719896407875,1.0,3457.3,3456.8,0.821]
[1719896409651,3.65174619,3457.5,3456.9,0.05784618]
[1719896410148,3.65174619,3457.5,3456.6,3.76585933]
[1719896410149,3.4686,3457.5,3456.6,3.76585933]
[1719896410366,1.0,3457.3,3456.6,3.76585933]
[1719896410577,1.0,3457.3,3456.7,0.05784646]
[1719896410785,1.0,3457.3,3456.8,0.05784648]
[1719896411347,1.0,3457.3,3456.6,3.76585933]
[1719896412586,1.0,3457.3,3456.7,0.72374914]
[1719896412773,1.0,3457.3,3456.8,0.05784663]
[1719896414777,1.0,3457.3,3456.7,0.66590293]
[1719896416394,0.18314619,3457.4,3456.7,0.66590293]
[1719896416757,1.0,3457.3,3456.8,0.05784535]
[1719896416962,1.0,3457.3,3456.7,0.66590293]
[1719896417176,1.0,3457.3,3456.6,3.76585933]
[1719896417345,1.0,3457.6,3456.8,2.89279]
[1719896417551,3.89209,3457.7,3456.9,0.55]
[1719896417851,3.89209,3457.7,3456.9,3.44271]
[1719896418264,1.0,3457.5,3456.9,3.44271]
[1719896422386,1.0,3457.5,3456.9,4.36055093]
[1719896424051,1.0,3457.5,3456.6,0.87290933]
[1719896424052,1.18314619,3457.5,3456.6,3.76585933]
[1719896424451,1.0,3457.3,3456.6,3.76585933]
[1719896426690,4.07547619,3457.5,3456.7,2.89293]
[1719896427061,1.18314619,3457.5,3456.7,2.89293]
[1719896427256,1.18314619,3457.5,3456.8,0.66589193]
[1719896427257,4.07542619,3457.5,3456.8,0.66589193]
[1719896428492,3.89228,3457.5,3456.8,0.66589193]
[1719896428689,3.89228,3457.5,3456.6,0.87290933]
[1719896428891,1.0,3457.5,3456.7,2.89287]
[1719896429092,1.18314619,3457.5,3456.8,2.89284]
[1719896429258,1.0,3457.3,3456.8,2.89284]
[1719896429455,1.0,3457.3,3456.8,0.66588193]
[1719896430584,0.18314619,3457.5,3456.8,0.66588193]
[1719896430585,1.0,3457.5,3456.8,0.66588193]
[1719896430779,1.0,3457.5,3456.8,3.55870193]
[1719896431569,1.18314619,3457.7,3457.0,2.89266]
[1719896431774,1.18314619,3457.7,3457.3,0.821]
[1719896431984,1.18314619,3457.7,3457.4,0.05784027]
[1719896437511,1.18314619,3457.7,3457.3,0.821]
[1719896438791,1.0,3457.7,3457.4,0.05784025]
[1719896445361,2.4798,3457.8,3457.5,0.821]
[1719896445528,3.43314619,3458.1,3457.5,0.8788378]
[1719896445691,1.0,3457.9,3457.5,0.8788378]
[1719896445892,0.20933271,3457.8,3457.5,0.8788378]
[1719896446733,0.20933271,3457.8,3457.5,0.821]
[1719896447025,0.20933271,3457.8,3457.3,3.71342]
[1719896447357,0.20933271,3457.8,3457.3,4.40321009]
[1719896447507,1.0,3457.9,3457.3,4.40321009]
[1719896447710,1.0,3457.9,3457.3,1.51079009]
[1719896447928,1.0,3457.7,3457.1,0.29190091]
[1719896448098,1.0,3457.7,3457.2,0.821]
[1719896448299,1.0,3457.5,3457.2,0.821]
[1719896449918,4.07516619,3457.8,3457.2,0.821]
[1719896450611,1.18314619,3457.8,3457.2,0.821]
[1719896450948,1.18314619,3457.8,3457.2,1.56508273]
[1719896451098,1.18314619,3457.8,3457.4,0.821]
[1719896453146,1.0,3457.8,3457.4,0.821]
[1719896455932,1.18314619,3457.8,3457.4,0.821]
[1719896456243,1.0,3457.8,3457.4,0.821]
[1719896456994,1.0,3457.8,3457.6,0.821]
[1719896457654,3.07503619,3458.0,3457.6,0.821]
[1719896457655,1.0,3458.1,3457.6,0.821]
[1719896457811,0.20934519,3458.0,3457.7,0.05783554]
[1719896458012,1.0,3458.1,3457.7,0.05783554]
[1719896458411,0.20934762,3458.0,3457.7,0.05783554]
[1719896458611,1.0,3458.1,3457.7,0.05783554]
[1719896458848,1.0,3458.1,3457.6,0.87883599]
[1719896459232,1.18314619,3458.1,3457.6,0.87883599]
[1719896459433,4.07490619,3458.1,3457.6,0.87883599]
[1719896459944,1.0,3458.1,3457.6,1.4347946]
[1719896461348,0.20935769,3458.0,3457.6,1.4347946]
[1719896461549,1.0,3458.1,3457.6,1.4347946]
[1719896461789,0.20935687,3458.0,3457.6,1.4347946]
[1719896462052,1.0,3458.1,3457.6,1.4347946]
[1719896463329,0.20935877,3458.0,3457.6,1.4347946]
[1719896463536,1.0,3458.1,3457.6,1.4347946]
[1719896463736,0.20935829,3458.0,3457.6,1.4347946]
[1719896463940,1.0,3458.1,3457.6,1.4347946]
[1719896464122,0.20934899,3458.0,3457.6,1.4347946]
[1719896464314,1.0,3458.1,3457.6,1.4347946]
[1719896467236,1.0,3458.1,3457.6,0.821]
[1719896474950,1.18314619,3458.3,3457.6,0.821]
[1719896475151,3.71232,3458.7,3458.0,0.821]
[1719896475152,1.18314619,3458.5,3458.0,0.821]
[1719896475323,0.20929292,3458.4,3458.0,0.821]
[1719896475523,0.20929292,3458.3,3458.0,0.821]
[1719896475839,3.89148,3458.5,3458.0,0.821]
[1719896476031,3.28395817,3458.4,3458.0,0.821]
[1719896476228,0.20930198,3458.3,3458.0,0.821]
[1719896476535,0.18314619,3458.3,3458.0,0.821]
[1719896480153,1.18314619,3458.3,3458.0,0.821]
[1719896481117,4.07473619,3458.3,3458.0,0.821]
[1719896481319,4.07473619,3458.3,3457.8,2.3862]
[1719896481527,1.0,3458.1,3457.8,3.2072]
[1719896482072,0.18314619,3458.0,3457.4,2.3768]
[1719896482273,0.18314619,3458.0,3457.3,1.10649122]
[1719896482274,1.0,3457.7,3457.3,1.10649122]
[1719896482469,1.0,3457.7,3457.3,1.66695739]
[1719896483594,0.18314619,3458.0,3457.3,1.66695739]
[1719896483753,1.0,3457.9,3457.3,1.66695739]
[1719896484156,1.0,3457.9,3457.5,0.821]
[1719896484596,0.18314619,3458.0,3457.5,0.821]
[1719896485972,3.07499619,3458.0,3457.3,1.66695739]
[1719896486373,3.07499619,3458.0,3457.2,3.91807211]
[1719896486374,1.18314619,3457.8,3457.2,0.28147938]
[1719896486699,1.18314619,3457.8,3457.1,0.821]
[1719896489681,1.18314619,3457.8,3457.1,1.10724273]
[1719896491361,1.18314619,3457.8,3457.3,0.821]
[1719896493059,1.18314619,3457.8,3457.5,0.821]
[1719896493662,1.0,3457.8,3457.5,0.821]
[1719896494263,1.0,3457.8,3457.5,1.42159]
[1719896494485,0.18314619,3458.1,3457.5,1.47942684]
[1719896494688,3.3168,3458.2,3457.5,1.47942684]
[1719896494689,3.3168,3458.2,3457.7,0.821]
[1719896494923,3.3168,3458.2,3457.7,0.87883446]
[1719896495281,0.18314619,3458.1,3457.7,0.821]
[1719896496319,0.18314619,3458.1,3457.7,0.87883458]
[1719896497335,1.0,3458.2,3457.9,0.821]
[1719896499127,1.0,3458.4,3458.0,0.05783259]
[1719896499344,1.0,3458.4,3458.1,0.821]
[1719896500423,1.0,3458.4,3457.7,3.32925746]
[1719896500424,1.0,3458.4,3457.9,0.821]
[1719896501327,1.0,3458.6,3457.9,3.50012575]
[1719896501517,0.20946029,3458.5,3457.9,6.39202575]
[1719896501823,1.0,3458.3,3457.9,6.39202575]
[1719896502046,1.0,3458.3,3458.0,0.97212832]
[1719896502530,1.0,3458.3,3458.1,0.821]
[1719896503117,1.0,3458.5,3458.1,0.821]
[1719896506896,1.0,3458.5,3458.0,3.86395832]
[1719896507235,1.0,3458.5,3458.1,1.02559841]
[1719896510700,1.18314619,3458.7,3458.1,1.02559841]
[1719896513910,1.18314619,3458.7,3458.1,1.84659841]
[1719896514109,1.18314619,3458.7,3458.3,0.821]
[1719896514110,0.18314619,3458.7,3458.3,0.821]
[1719896514327,1.2895,3458.9,3458.5,0.821]
[1719896514656,1.2895,3458.9,3458.5,0.05782091]
[1719896516238,1.2895,3458.9,3458.4,0.47961641]
[1719896516438,1.2895,3458.9,3458.5,0.05782127]
[1719896516735,1.2895,3458.9,3458.4,0.47961641]
[1719896516932,1.2895,3458.9,3458.5,0.41922064]
[1719896518454,1.0,3458.6,3458.4,0.47961641]
[1719896520875,1.0,3458.8,3458.4,0.47961641]
[1719896525315,1.0,3458.8,3458.1,2.89173]
[1719896525515,1.0,3458.6,3458.1,2.89173]
[1719896526614,1.0,3458.6,3458.0,3.17621173]
[1719896526839,1.0,3458.6,3458.1,0.821]
[1719896527146,1.0,3458.6,3458.1,1.22072117]
[1719896527847,1.0,3458.6,3458.1,0.39972117]
[1719896530912,1.0,3458.6,3458.2,0.821]
[1719896531147,1.0,3458.6,3458.1,0.39972117]
[1719896532856,2.2617,3458.5,3458.1,0.39972117]
[1719896533153,2.2617,3458.5,3458.0,1.10538173]
[1719896533317,2.89152,3458.4,3458.0,0.28438173]
[1719896533522,1.0,3458.3,3457.6,12.75847]
[1719896533722,1.0,3458.3,3457.7,0.821]
[1719896537152,2.89152,3458.4,3457.7,0.821]
[1719896537318,2.89152,3458.4,3457.8,0.40037384]
[1719896542463,1.0,3458.3,3457.8,0.40037384]
[1719896544936,3.44484619,3458.5,3457.9,0.821]
[1719896545239,6.33630619,3458.5,3457.9,0.821]
[1719896545439,6.33630619,3458.5,3457.9,1.55061723]
[1719896547751,3.2617,3458.5,3457.9,1.55061723]
[1719896548157,1.0,3458.5,3458.1,0.821]
[1719896548353,1.0,3458.5,3458.3,0.821]
[1719896548767,1.0,3458.5,3458.1,0.821]
[1719896548946,1.0,3458.5,3458.2,0.44425272]
[1719896550886,4.07442619,3458.7,3458.2,0.44425272]
[1719896551380,4.07442619,3458.7,3458.1,0.821]
[1719896552063,1.18314619,3458.7,3458.1,0.821]
[1719896554157,1.18314619,3458.7,3458.3,0.821]
[1719896558975,1.18314619,3458.7,3458.4,0.821]
[1719896567516,1.18314619,3458.7,3458.1,3.1743928]
[1719896567831,1.18314619,3458.7,3458.2,0.821]
[1719896570127,1.21114627,3458.7,3458.2,0.821]
[1719896580050,1.21114627,3458.7,3458.4,0.821]
[1719896581869,4.10240627,3458.7,3458.1,1.23850119]
[1719896582181,4.10240627,3458.7,3458.3,0.821]
[1719896582326,1.0,3458.5,3458.3,0.821]
[1719896583657,5.21527,3458.8,3457.6,2.89217]
[1719896583658,1.0,3458.3,3457.6,2.89217]
[1719896583968,2.91959008,3458.3,3457.8,0.821]
[1719896584167,1.0,3458.2,3457.8,0.821]
[1719896584373,2.3087,3458.1,3457.4,7.71935734]
[1719896584529,3.3087,3458.1,3457.6,0.821]
[1719896584731,2.3087,3458.1,3457.6,0.821]
[1719896585935,3.3087,3458.1,3457.6,0.821]
[1719896586462,3.3087,3458.1,3457.5,1.06117173]
[1719896586664,3.3087,3458.1,3457.8,0.821]
[1719896587364,0.18314619,3458.0,3457.4,7.71935734]
[1719896587565,0.18314619,3458.0,3457.6,0.821]
[1719896587566,0.21114627,3458.0,3457.6,0.821]
[1719896588140,1.0,3457.9,3457.6,0.821]
[1719896588991,1.0,3457.9,3457.4,0.28935734]
[1719896589285,1.0,3457.9,3457.0,2.89266]
[1719896589286,2.3917,3457.7,3457.0,2.89266]
[1719896589590,2.3917,3457.7,3457.4,0.821]
[1719896590081,3.3917,3457.7,3457.4,0.821]